[Event "African Open (w)"]
[Site "followchess.com"]
[Date "2022.09.27"]
[Round "9"]
[White "Vilhete, Vania Fausto Da T."]
[Black "Mbatha, Constance"]
[Result "1/2-1/2"]
[ECO "D30"]
[WhiteElo "1718"]
[BlackElo "1613"]
[PlyCount "215"]
[EventDate "2022.??.??"]
[TimeControl "5400+30"]

1. d4 {[%emt 0:00:02]} e6 {[%emt 0:00:17]} 2. c4 {[%emt 0:00:05]} d5 {[%emt 0:
00:04]} 3. Nf3 {[%emt 0:00:12]} Nf6 {[%emt 0:00:06]} 4. e3 {[%emt 0:00:07]} Be7
{[%emt 0:00:09]} 5. Bd3 {[%emt 0:00:07]} O-O {[%emt 0:00:54]} 6. O-O {[%emt 0:
00:14]} b6 {[%emt 0:00:15]} 7. cxd5 {[%emt 0:00:36]} exd5 {[%emt 0:00:05]} 8.
Nc3 {[%emt 0:00:19]} Bg4 {[%emt 0:00:32]} 9. Re1 {[%emt 0:01:12]} c5 {[%emt 0:
01:00]} 10. dxc5 {[%emt 0:03:04]} Bxc5 {[%emt 0:01:56]} 11. a3 {[%emt 0:02:38]}
Nc6 {[%emt 0:00:34]} 12. Be2 {[%emt 0:06:40]} Re8 {[%emt 0:04:02]} 13. b4 {
[%emt 0:02:13]} Bf8 {[%emt 0:00:24]} 14. Bb2 {[%emt 0:00:32]} Rc8 {[%emt 0:01:
06]} 15. Rc1 {[%emt 0:01:37]} Re7 {[%emt 0:04:55]} 16. Ba6 {[%emt 0:07:10]}
Bxf3 {[%emt 0:11:23]} 17. Qxf3 {[%emt 0:04:52]} Ne5 {[%emt 0:01:41]} 18. Qf5 {
[%emt 0:02:17]} Rcc7 {[%emt 0:01:19]} 19. Nxd5 {[%emt 0:13:56]} Qxd5 {[%emt 0:
08:33]} 20. Rxc7 {[%emt 0:01:03]} Rxc7 {[%emt 0:00:03]} 21. Qxe5 {[%emt 0:02:
21]} Qd2 {[%emt 0:00:50]} 22. Qxc7 {[%emt 0:12:02]} Qxe1+ {[%emt 0:00:50]} 23.
Bf1 {[%emt 0:00:04]} Ne4 {[%emt 0:00:39]} 24. Qc2 {[%emt 0:02:21]} Nd2 {
[%emt 0:03:30]} 25. Qd3 {[%emt 0:00:39]} Nxf1 {[%emt 0:00:27]} 26. Qxf1 {
[%emt 0:00:14]} Qd2 {[%emt 0:00:09]} 27. Qc1 {[%emt 0:01:41]} Qd3 {[%emt 0:00:
20]} 28. h3 {[%emt 0:03:11]} h6 {[%emt 0:00:04]} 29. g3 {[%emt 0:02:36]} Qe2 {
[%emt 0:00:55]} 30. Kg2 {[%emt 0:00:21]} Qb5 {[%emt 0:01:14]} 31. Qc2 {[%emt 0:
03:15]} a5 {[%emt 0:00:26]} 32. bxa5 {[%emt 0:01:04]} Qxa5 {[%emt 0:00:14]} 33.
a4 {[%emt 0:01:42]} b5 {[%emt 0:01:30]} 34. axb5 {[%emt 0:02:37]} Qxb5 {
[%emt 0:00:01]} 35. Bd4 {[%emt 0:00:46]} Qd5+ {[%emt 0:00:56]} 36. Kh2 {
[%emt 0:01:12]} Qb7 {[%emt 0:05:33]} 37. Qf5 {[%emt 0:01:47]} Qc6 {[%emt 0:00:
52]} 38. Qe5 {[%emt 0:04:51]} Qc2 {[%emt 0:01:46]} 39. Kg2 {[%emt 0:02:04]}
Qc6+ {[%emt 0:00:25]} 40. e4 {[%emt 0:00:18]} Qc8 {[%emt 0:02:13]} 41. Qd5 {
[%emt 0:00:26]} Be7 {[%emt 0:02:31]} 42. e5 {[%emt 0:01:59]} Bf8 {[%emt 0:02:
47]} 43. Qe4 {[%emt 0:06:55]} Qe6 {[%emt 0:00:47]} 44. Qa8 {[%emt 0:06:01]} Qe7
{[%emt 0:00:45]} 45. f4 {[%emt 0:00:00]} Qb4 {[%emt 0:00:00]} 46. Bf2 {[%emt 0:
00:00]} Kh7 {[%emt 0:00:00]} 47. Qa2 {[%emt 0:00:00]} Qb7+ {[%emt 0:00:00]} 48.
Kh2 {[%emt 0:00:00]} Qd7 {[%emt 0:00:00]} 49. Qc2+ {[%emt 0:00:00]} Kg8 {
[%emt 0:00:00]} 50. Qe4 {[%emt 0:00:00]} Qd2 {[%emt 0:00:00]} 51. Qe3 Qd7 {
[%emt 0:00:00]} 52. g4 {[%emt 0:00:00]} g6 {[%emt 0:00:00]} 53. Kg3 {[%emt 0:
00:00]} Qe6 {[%emt 0:00:00]} 54. Qb6 {[%emt 0:00:00]} Qd5 {[%emt 0:00:00]} 55.
Qe3 {[%emt 0:00:00]} Qe6 {[%emt 0:00:00]} 56. Qe4 {[%emt 0:00:00]} Bg7 {
[%emt 0:00:00]} 57. Qa8+ {[%emt 0:00:00]} Kh7 {[%emt 0:00:00]} 58. Qb8 {
[%emt 0:00:00]} Qc4 {[%emt 0:00:00]} 59. Qd6 {[%emt 0:00:00]} Qe4 {[%emt 0:00:
00]} 60. Qd4 {[%emt 0:00:00]} Qc6 {[%emt 0:00:00]} 61. f5 {[%emt 0:00:08]} Qc7
{[%emt 0:00:00]} 62. Kf4 {[%emt 0:03:06]} g5+ {[%emt 0:00:00]} 63. Ke4 {
[%emt 0:00:22]} Qb7+ {[%emt 0:00:00]} 64. Qd5 {[%emt 0:02:19]} Qb1+ {[%emt 0:
00:00]} 65. Qd3 {[%emt 0:02:05]} Qxd3+ {[%emt 0:00:00]} 66. Kxd3 {[%emt 0:00:
12]} Bxe5 {[%emt 0:00:00]} 67. Ke4 {[%emt 0:00:32]} Bd6 {[%emt 0:00:00]} 68.
Kd5 {[%emt 0:00:36]} Ba3 {[%emt 0:00:00]} 69. Bd4 {[%emt 0:00:25]} Kg8 {
[%emt 0:00:00]} 70. Kc6 {[%emt 0:01:12]} Bb4 {[%emt 0:00:00]} 71. Kd7 {[%emt 0:
00:14]} Ba3 {[%emt 0:00:00]} 72. Ke8 {[%emt 0:01:41]} Bd6 {[%emt 0:00:00]} 73.
Bf6 {[%emt 0:00:31]} Bb4 {[%emt 0:00:00]} 74. Be7 {[%emt 0:00:12]} Bc3 {
[%emt 0:00:00]} 75. Bf8 {[%emt 0:00:31]} Be5 {[%emt 0:01:47]} 76. Bxh6 {
[%emt 0:01:27]} Bf6 {[%emt 0:00:01]} 77. Bf8 {[%emt 0:00:16]} Be5 {[%emt 0:00:
15]} 78. Be7 {[%emt 0:00:16]} Bf4 {[%emt 0:00:18]} 79. Bf6 {[%emt 0:00:18]} Be3
{[%emt 0:00:41]} 80. h4 {[%emt 0:00:58]} gxh4 {[%emt 0:00:03]} 81. Bxh4 {
[%emt 0:00:13]} Bd4 {[%emt 0:00:31]} 82. Bg5 {[%emt 0:00:36]} Kg7 {[%emt 0:02:
52]} 83. Ke7 {[%emt 0:00:34]} Bc5+ {[%emt 0:00:31]} 84. Kd7 {[%emt 0:00:27]}
Bb4 {[%emt 0:00:39]} 85. Bd8 {[%emt 0:00:39]} Bc3 {[%emt 0:00:21]} 86. Bb6 {
[%emt 0:00:14]} Bb4 {[%emt 0:01:32]} 87. Be3 {[%emt 0:00:09]} Bc3 {[%emt 0:02:
34]} 88. Bg5 {[%emt 0:01:16]} f6 {[%emt 0:01:08]} 89. Be3 {[%emt 0:01:00]} Kf7
{[%emt 0:00:02]} 90. Bc5 {[%emt 0:00:44]} Bd2 {[%emt 0:00:17]} 91. Bd4 {
[%emt 0:00:56]} Bg5 {[%emt 0:00:47]} 92. Kd6 {[%emt 0:00:27]} Bf4+ {[%emt 0:00:
21]} 93. Kd5 {[%emt 0:00:08]} Bd2 {[%emt 0:00:44]} 94. Ke4 {[%emt 0:00:13]} Bg5
{[%emt 0:00:31]} 95. Be3 {[%emt 0:00:28]} Bh4 {[%emt 0:00:03]} 96. Kf3 {
[%emt 0:00:33]} Be1 {[%emt 0:00:06]} 97. Kf4 {[%emt 0:00:58]} Bh4 {[%emt 0:00:
41]} 98. Kf3 {[%emt 0:00:07]} Be1 {[%emt 0:00:03]} 99. Bd4 {[%emt 0:00:36]} Bh4
{[%emt 0:00:10]} 100. Be3 {[%emt 0:00:19]} Be1 {[%emt 0:00:21]} 101. g5 {
[%emt 0:00:09]} fxg5 {[%emt 0:00:02]} 102. Bxg5 {[%emt 0:00:21]} Bc3 {[%emt 0:
00:17]} 103. Ke4 {[%emt 0:00:25]} Bb2 {[%emt 0:00:23]} 104. Bf4 {[%emt 0:00:26]
} Ba3 {[%emt 0:00:58]} 105. Be5 {[%emt 0:00:19]} Be7 {[%emt 0:00:20]} 106. Kd5
{[%emt 0:00:24]} Bg5 {[%emt 0:00:16]} 107. Bd4 {[%emt 0:00:49]} Bd8 {[%emt 0:
00:21]} 108. Ke4 1/2-1/2

[Event "African Open (w)"]
[Site "followchess.com"]
[Date "2022.09.27"]
[Round "9"]
[White "Aramude, Sandra"]
[Black "Ampaire Shakira"]
[Result "0-1"]
[ECO "A01"]
[WhiteElo "1813"]
[BlackElo "1657"]
[PlyCount "76"]
[EventDate "2022.??.??"]
[TimeControl "5400+30"]

1. b3 {[%emt 0:00:03]} e5 {[%emt 0:01:16]} 2. Bb2 {[%emt 0:00:37]} Nc6 {
[%emt 0:00:51]} 3. e3 {[%emt 0:00:31]} Nf6 {[%emt 0:03:35]} 4. Bb5 {[%emt 0:05:
18]} Bd6 {[%emt 0:02:11]} 5. Ne2 {[%emt 0:08:52]} O-O {[%emt 0:07:23]} 6. Nbc3
{[%emt 0:04:05]} Qe7 {[%emt 0:05:39]} 7. O-O {[%emt 0:06:14]} a6 {[%emt 0:02:
41]} 8. Bxc6 {[%emt 0:08:39]} dxc6 {[%emt 0:02:46]} 9. e4 {[%emt 0:04:01]} Bg4
{[%emt 0:11:48]} 10. d3 {[%emt 0:03:41]} Ba3 {[%emt 0:04:36]} 11. Bxa3 {
[%emt 0:08:32]} Qxa3 {[%emt 0:00:33]} 12. Qc1 {[%emt 0:00:18]} Qa5 {[%emt 0:01:
03]} 13. Qe3 {[%emt 0:01:56]} Qa3 {[%emt 0:06:32]} 14. Ng3 {[%emt 0:08:59]} b5
{[%emt 0:01:56]} 15. h3 {[%emt 0:01:33]} Be6 {[%emt 0:00:32]} 16. f4 {[%emt 0:
01:50]} exf4 {[%emt 0:01:06]} 17. Rxf4 {[%emt 0:13:35]} Qb2 {[%emt 0:00:42]}
18. Raf1 {[%emt 0:01:14]} Qxc3 {[%emt 0:00:19]} 19. Rxf6 {[%emt 0:00:13]} gxf6
{[%emt 0:28:15]} 20. Qh6 {[%emt 0:00:15]} Kh8 {[%emt 0:00:08]} 21. Nh5 {
[%emt 0:00:44]} Rg8 {[%emt 0:00:10]} 22. Nxf6 {[%emt 0:00:24]} Rg7 {[%emt 0:00:
11]} 23. Rf2 {[%emt 0:09:59]} Qe1+ {[%emt 0:02:40]} 24. Rf1 {[%emt 0:00:27]}
Qg3 {[%emt 0:00:20]} 25. Rf2 {[%emt 0:03:14]} Qg5 {[%emt 0:01:32]} 26. Qxg5 {
[%emt 0:01:20]} Rxg5 {[%emt 0:00:08]} 27. Kf1 {[%emt 0:00:06]} b4 {[%emt 0:02:
10]} 28. Ke2 {[%emt 0:00:58]} Ra5 {[%emt 0:01:49]} 29. h4 {[%emt 0:01:11]} Rxa2
{[%emt 0:00:54]} 30. Ke3 {[%emt 0:01:08]} a5 {[%emt 0:03:24]} 31. h5 {[%emt 0:
00:51]} Kg7 {[%emt 0:00:30]} 32. e5 {[%emt 0:00:27]} a4 {[%emt 0:00:30]} 33.
bxa4 R8xa4 {[%emt 0:00:18]} 34. h6+ {[%emt 0:03:04]} Kxh6 {[%emt 0:00:29]} 35.
Rf3 {[%emt 0:01:38]} Rxc2 {[%emt 0:01:41]} 36. Rg3 {[%emt 0:00:30]} Ra8 {
[%emt 0:03:25]} 37. d4 {[%emt 0:01:31]} b3 {[%emt 0:00:20]} 38. Ne4 {[%emt 0:
00:32]} b2 {[%emt 0:00:52]} 0-1

[Event "African Open (w)"]
[Site "followchess.com"]
[Date "2022.09.27"]
[Round "9"]
[White "Van Zyl, Charlize"]
[Black "Ofowino, Toritsemuwa"]
[Result "1-0"]
[ECO "D00"]
[WhiteElo "1710"]
[BlackElo "1857"]
[PlyCount "103"]
[EventDate "2022.??.??"]
[TimeControl "5400+30"]

1. d4 {[%emt 0:00:04]} d5 {[%emt 0:00:21]} 2. Bf4 {[%emt 0:00:09]} c6 {[%emt 0:
00:17]} 3. e3 {[%emt 0:00:34]} Qb6 {[%emt 0:00:17]} 4. Qc1 {[%emt 0:00:25]} Bf5
{[%emt 0:00:20]} 5. c4 {[%emt 0:01:17]} e6 {[%emt 0:02:44]} 6. c5 {[%emt 0:05:
15]} Qd8 {[%emt 0:02:13]} 7. Nc3 {[%emt 0:01:10]} Nf6 {[%emt 0:00:20]} 8. h3 {
[%emt 0:00:13]} Be7 {[%emt 0:00:27]} 9. Nf3 {[%emt 0:00:56]} Nbd7 {[%emt 0:01:
44]} 10. Be2 {[%emt 0:04:46]} O-O {[%emt 0:00:36]} 11. O-O {[%emt 0:00:06]} Ne4
{[%emt 0:00:42]} 12. b4 {[%emt 0:02:39]} a5 {[%emt 0:18:00]} 13. b5 {[%emt 0:
01:49]} a4 {[%emt 0:04:21]} 14. bxc6 {[%emt 0:10:24]} bxc6 {[%emt 0:00:13]} 15.
Rd1 {[%emt 0:00:11]} Qc8 {[%emt 0:15:46]} 16. Nxe4 {[%emt 0:02:45]} Bxe4 {
[%emt 0:00:10]} 17. Bd3 {[%emt 0:00:06]} Bxd3 {[%emt 0:01:06]} 18. Rxd3 {
[%emt 0:00:05]} Bd8 {[%emt 0:00:09]} 19. Bd6 {[%emt 0:09:44]} Re8 {[%emt 0:01:
06]} 20. Ne5 {[%emt 0:00:42]} f6 {[%emt 0:18:05]} 21. Nxd7 {[%emt 0:01:02]}
Qxd7 {[%emt 0:00:05]} 22. Rb1 {[%emt 0:01:23]} Be7 {[%emt 0:00:45]} 23. Rb6 {
[%emt 0:03:52]} Ra7 {[%emt 0:06:18]} 24. Rc3 {[%emt 0:04:06]} Bd8 {[%emt 0:01:
56]} 25. Rb2 {[%emt 0:02:03]} Ba5 {[%emt 0:02:09]} 26. Ra3 {[%emt 0:01:53]} Bc7
{[%emt 0:00:40]} 27. Rb4 {[%emt 0:02:30]} Bxd6 {[%emt 0:03:54]} 28. cxd6 {
[%emt 0:00:07]} Qxd6 {[%emt 0:02:33]} 29. Rbxa4 {[%emt 0:02:16]} Rxa4 {[%emt 0:
00:47]} 30. Rxa4 {[%emt 0:00:08]} e5 {[%emt 0:00:20]} 31. Ra6 {[%emt 0:04:36]}
Rc8 {[%emt 0:00:21]} 32. a4 {[%emt 0:01:12]} exd4 {[%emt 0:01:00]} 33. exd4 {
[%emt 0:00:07]} h6 {[%emt 0:01:34]} 34. Rb6 {[%emt 0:02:28]} Re8 {[%emt 0:03:
19]} 35. a5 {[%emt 0:03:16]} Qe6 {[%emt 0:01:03]} 36. Rxc6 {[%emt 0:06:41]}
Qe1+ {[%emt 0:00:28]} 37. Qxe1 {[%emt 0:00:04]} Rxe1+ {[%emt 0:00:05]} 38. Kh2
{[%emt 0:00:03]} Rd1 {[%emt 0:00:22]} 39. a6 {[%emt 0:00:24]} Ra1 {[%emt 0:00:
05]} 40. Kg3 {[%emt 0:00:54]} Kh7 {[%emt 0:00:28]} 41. Kf4 {[%emt 0:06:27]} Kg6
{[%emt 0:00:12]} 42. h4 {[%emt 0:11:46]} h5 {[%emt 0:00:21]} 43. Rd6 {[%emt 0:
01:23]} Ra3 {[%emt 0:01:24]} 44. f3 {[%emt 0:02:18]} Ra4 {[%emt 0:00:26]} 45.
Ke3 {[%emt 0:00:53]} Ra3+ {[%emt 0:00:10]} 46. Kd2 {[%emt 0:01:15]} Kf5 {
[%emt 0:01:15]} 47. Kc2 {[%emt 0:05:36]} Kf4 {[%emt 0:01:45]} 48. Kb2 {[%emt 0:
00:05]} Ra5 {[%emt 0:00:13]} 49. Kb3 {[%emt 0:00:14]} Ke3 {[%emt 0:00:17]} 50.
Kb4 {[%emt 0:00:20]} Ra1 {[%emt 0:00:15]} 51. Kc5 {[%emt 0:00:59]} Ra4 {
[%emt 0:01:16]} 52. Kb5 {[%emt 0:01:36]} 1-0

[Event "African Open (w)"]
[Site "followchess.com"]
[Date "2022.09.27"]
[Round "9"]
[White "Abigail Karyah"]
[Black "Ayemou Akissi Victoire Sinchi"]
[Result "1-0"]
[ECO "B00"]
[WhiteElo "1435"]
[BlackElo "1182"]
[PlyCount "89"]
[EventDate "2022.??.??"]
[TimeControl "5400+30"]

1. e4 {[%emt 0:00:04]} b6 {[%emt 0:00:10]} 2. d4 {[%emt 0:00:09]} Bb7 {[%emt 0:
00:11]} 3. Nc3 {[%emt 0:00:09]} e6 4. a3 d6 {[%emt 0:01:19]} 5. Nf3 {[%emt 0:
00:43]} Nf6 6. Bd3 Be7 {[%emt 0:01:39]} 7. O-O {[%emt 0:00:51]} O-O {[%emt 0:
00:23]} 8. b3 {[%emt 0:01:28]} Nbd7 {[%emt 0:00:52]} 9. Bb2 {[%emt 0:00:17]} c5
{[%emt 0:00:35]} 10. Qe2 {[%emt 0:01:31]} cxd4 {[%emt 0:00:59]} 11. Nxd4 {
[%emt 0:00:14]} e5 {[%emt 0:01:10]} 12. Nf5 {[%emt 0:00:31]} g6 {[%emt 0:01:39]
} 13. Nxe7+ {[%emt 0:00:36]} Qxe7 {[%emt 0:00:59]} 14. Rfd1 {[%emt 0:02:09]}
Rac8 {[%emt 0:02:19]} 15. Rac1 {[%emt 0:00:49]} Rfd8 {[%emt 0:01:21]} 16. Bc4 {
[%emt 0:01:32]} Nc5 {[%emt 0:00:59]} 17. Nd5 {[%emt 0:00:30]} Bxd5 {[%emt 0:01:
47]} 18. Bxd5 {[%emt 0:00:10]} Rc7 {[%emt 0:05:22]} 19. Qe3 {[%emt 0:04:56]}
Rdc8 {[%emt 0:04:44]} 20. c4 {[%emt 0:01:37]} Kg7 {[%emt 0:06:42]} 21. f4 {
[%emt 0:10:30]} exf4 {[%emt 0:02:39]} 22. Qxf4 {[%emt 0:00:08]} Re8 {[%emt 0:
05:24]} 23. Rf1 {[%emt 0:02:27]} Ncd7 {[%emt 0:01:41]} 24. Rc2 Ne5 {[%emt 0:01:
43]} 25. Rcf2 {[%emt 0:09:56]} Nxd5 26. cxd5 {[%emt 0:01:07]} a5 {[%emt 0:04:
56]} 27. Qe3 {[%emt 0:04:07]} Rb7 {[%emt 0:03:25]} 28. Rxf7+ {[%emt 0:02:32]}
Qxf7 {[%emt 0:00:35]} 29. Rxf7+ {[%emt 0:00:06]} Kxf7 30. Qf4+ {[%emt 0:00:46]}
Kg8 {[%emt 0:01:51]} 31. Qf6 {[%emt 0:00:54]} Rd7 {[%emt 0:01:12]} 32. Bd4 {
[%emt 0:02:21]} b5 {[%emt 0:01:19]} 33. Bc3 {[%emt 0:03:30]} a4 {[%emt 0:00:29]
} 34. bxa4 {[%emt 0:00:32]} bxa4 {[%emt 0:01:01]} 35. h3 {[%emt 0:00:16]} Rf8 {
[%emt 0:01:32]} 36. Qe6+ {[%emt 0:00:20]} Rff7 {[%emt 0:01:07]} 37. Bxe5 {
[%emt 0:00:45]} dxe5 {[%emt 0:00:42]} 38. Qxe5 {[%emt 0:00:07]} Rde7 {[%emt 0:
01:23]} 39. Qd4 {[%emt 0:00:38]} Rf4 {[%emt 0:00:30]} 40. d6 {[%emt 0:01:14]}
Rexe4 {[%emt 0:00:42]} 41. Qd5+ {[%emt 0:00:24]} Kg7 {[%emt 0:01:01]} 42. d7 {
[%emt 0:00:24]} Rd4 {[%emt 0:01:17]} 43. Qe5+ {[%emt 0:00:14]} Kg8 {[%emt 0:00:
46]} 44. Qxf4 {[%emt 0:01:41]} Rxd7 {[%emt 0:00:27]} 45. Qxa4 {[%emt 0:00:08]}
1-0

[Event "African Open (w)"]
[Site "followchess.com"]
[Date "2022.09.27"]
[Round "9"]
[White "Amadasun, Rosemary"]
[Black "Pelomoh Jessica"]
[Result "0-1"]
[ECO "C03"]
[WhiteElo "1807"]
[BlackElo "1904"]
[PlyCount "61"]
[EventDate "2022.??.??"]
[TimeControl "5400+30"]

1. e4 {[%emt 0:00:11]} e6 {[%emt 0:00:14]} 2. d4 {[%emt 0:00:10]} d5 {[%emt 0:
00:12]} 3. Nd2 {[%emt 0:00:45]} dxe4 {[%emt 0:00:20]} 4. Nxe4 {[%emt 0:00:04]}
Be7 {[%emt 0:00:22]} 5. Nf3 {[%emt 0:00:27]} Nd7 {[%emt 0:00:26]} 6. Bd3 {
[%emt 0:03:30]} Ngf6 {[%emt 0:00:05]} 7. Ng3 {[%emt 0:00:36]} O-O {[%emt 0:00:
00]} 8. O-O {[%emt 0:00:21]} b6 {[%emt 0:00:00]} 9. Ne5 {[%emt 0:01:39]} Bb7 {
[%emt 0:00:40]} 10. c4 {[%emt 0:06:08]} c5 11. Be3 {[%emt 0:03:15]} Qc7 {
[%emt 0:03:16]} 12. Ng4 {[%emt 0:02:55]} Qc6 {[%emt 0:04:53]} 13. Nxf6+ {
[%emt 0:02:43]} Nxf6 {[%emt 0:00:12]} 14. f3 {[%emt 0:00:38]} Rad8 {[%emt 0:03:
11]} 15. dxc5 Ng4 {[%emt 0:13:08]} 16. Bxh7+ {[%emt 0:07:34]} Kh8 {[%emt 0:02:
37]} 17. Qe2 {[%emt 0:06:55]} Nxe3 {[%emt 0:00:07]} 18. Be4 {[%emt 0:04:00]}
Qc7 {[%emt 0:00:42]} 19. cxb6 {[%emt 0:06:40]} axb6 {[%emt 0:00:28]} 20. Rfc1 {
[%emt 0:02:37]} Bxe4 {[%emt 0:03:28]} 21. Nxe4 {[%emt 0:00:17]} Nf5 {[%emt 0:
00:21]} 22. Rd1 {[%emt 0:03:15]} Rxd1+ {[%emt 0:00:37]} 23. Rxd1 {[%emt 0:00:
02]} Rd8 {[%emt 0:00:03]} 24. g3 {[%emt 0:00:53]} Rxd1+ {[%emt 0:00:57]} 25.
Qxd1 {[%emt 0:00:04]} Qxc4 {[%emt 0:00:10]} 26. b3 {[%emt 0:01:24]} Bc5+ {
[%emt 0:03:03]} 27. Nxc5 {[%emt 0:00:40]} Qxc5+ {[%emt 0:00:03]} 28. Kh1 {
[%emt 0:00:01]} Qf2 {[%emt 0:03:03]} 29. g4 {[%emt 0:00:57]} Nh4 {[%emt 0:00:
52]} 30. Qd8+ {[%emt 0:03:16]} Kh7 {[%emt 0:00:08]} 31. Qd4 0-1